fUST/lending_fUST_20240618
["ID","MTS","AMOUNT","RATE_DAILY","PERIOD"]
[329775613,1718662252825,-384.810946,0.00016986,2]
[329775614,1718662252834,-269.652214,0.00016986,2]
[329775615,1718662252843,-151.0,0.00016986,2]
[329775616,1718662252852,-500.0,0.00016986,2]
[329775617,1718662252862,-500.0,0.00016986,2]
[329775618,1718662252871,-500.0,0.00016986,2]
[329775619,1718662252881,-500.0,0.00016986,2]
[329775620,1718662252891,-874.477239,0.00016986,2]
[329775621,1718662252900,-874.477239,0.00016986,2]
[329775622,1718662252910,-874.477239,0.00016986,2]
[329775623,1718662252919,-874.477239,0.00016986,2]
[329775624,1718662252929,-516.45639288,0.00016986,2]
[329775625,1718662252938,-500.0,0.00016986,2]
[329775626,1718662252947,-500.0,0.00016986,2]
[329775627,1718662252956,-500.0,0.00016986,2]
[329775628,1718662252966,-2487.73,0.00016986,2]
[329775629,1718662252975,-500.0,0.00016986,2]
[329775630,1718662253088,-500.0,0.00016986,2]
[329775631,1718662253098,-500.0,0.00016986,2]
[329775632,1718662253109,-500.0,0.00016986,2]
[329775633,1718662253118,-500.0,0.00016986,2]
[329775634,1718662253128,-500.0,0.00016986,2]
[329775635,1718662253138,-500.0,0.00016986,2]
[329775636,1718662253147,-500.0,0.00016986,2]
[329775637,1718662253157,-151.0,0.00016986,2]
[329775638,1718662253166,-500.0,0.00016986,2]
[329775639,1718662253176,-500.0,0.00016986,2]
[329775640,1718662253186,-500.0,0.00016986,2]
[329775641,1718662253195,-500.0,0.00016986,2]
[329775642,1718662253204,-500.0,0.00016986,2]
[329775643,1718662253215,-500.0,0.00016986,2]
[329775644,1718662253224,-360.45175307,0.00016986,2]
[329775645,1718662253234,-1789.500026,0.00016986,2]
[329775646,1718662253245,-1789.500026,0.00016986,2]
[329775647,1718662253255,-1789.500026,0.00016986,2]
[329775648,1718662253265,-1789.500026,0.00016986,2]
[329775649,1718662253274,-500.0,0.00016986,2]
[329775650,1718662253283,-234.57415632,0.00016986,2]
[329775651,1718662253292,-251.324799,0.00016986,2]
[329775652,1718662253301,-251.324799,0.00016986,2]
[329775653,1718662253310,-500.0,0.00016986,2]
[329775654,1718662253319,-500.0,0.00016986,2]
[329775655,1718662253332,-500.0,0.00016986,2]
[329775656,1718662253341,-521.78521327,0.00016986,2]
[329775657,1718662253350,-251.324799,0.00016986,2]
[329775658,1718662253360,-251.324799,0.00016986,2]
[329775659,1718662253374,-500.0,0.00016986,2]
[329775660,1718662253385,-780.92,0.00016986,2]
[329775661,1718662253396,-151.0,0.00016986,2]
[329775662,1718662253406,-1867.13,0.00016986,2]
[329775663,1718662253416,-151.0,0.00016986,2]
[329775664,1718662253426,-500.0,0.00016986,2]
[329775665,1718662253436,-500.0,0.00016986,2]
[329775666,1718662253446,-151.0,0.00016986,2]
[329775667,1718662253459,-232.266512,0.00016986,2]
[329775668,1718662253469,-803.31,0.00016986,2]
[329775669,1718662253479,-1463.9,0.00016986,2]
[329775670,1718662253488,-511.40755556,0.00016986,2]
[329775671,1718662253497,-500.0,0.00016986,2]
[329775672,1718662253506,-500.0,0.00016986,2]
[329775673,1718662253516,-500.0,0.00016986,2]
[329775674,1718662253525,-500.0,0.00016986,2]
[329775675,1718662253534,-1518.45,0.00016986,2]
[329775676,1718662253543,-250.27478172,0.00016986,2]
[329775677,1718662253552,-1355.51,0.00016986,2]
[329775678,1718662253562,-370.68718655,0.00016986,2]
[329775679,1718662253574,-500.0,0.00016986,2]
[329775680,1718662253587,-500.0,0.00016986,2]
[329775681,1718662253595,-500.0,0.00016986,2]
[329775682,1718662253604,-500.0,0.00016986,2]
[329775683,1718662253613,-500.0,0.00016986,2]
[329775684,1718662253622,-500.0,0.00016986,2]
[329775685,1718662253632,-500.0,0.00016986,2]
[329775686,1718662253641,-500.0,0.00016986,2]
[329775687,1718662253650,-500.0,0.00016986,2]
[329775688,1718662253659,-519.46259702,0.00016986,2]
[329775689,1718662253668,-500.0,0.00016986,2]
[329775690,1718662253677,-3634.11,0.00016986,2]
[329775691,1718662253687,-2089.52,0.00016986,2]
[329775692,1718662253696,-500.0,0.00016986,2]
[329775693,1718662253705,-392.743449,0.00016986,2]
[329775694,1718662253714,-392.743449,0.00016986,2]
[329775695,1718662253723,-500.0,0.00016986,2]
[329775696,1718662253733,-1150.89582,0.00016986,2]
[329775697,1718662253742,-1150.89582,0.00016986,2]
[329775698,1718662253751,-392.743449,0.00016986,2]
[329775699,1718662253760,-392.743449,0.00016986,2]
[329775700,1718662253770,-1150.89582,0.00016986,2]
[329775701,1718662253779,-1150.89582,0.00016986,2]
[329775702,1718662253788,-500.0,0.00016986,2]
[329775703,1718662253798,-500.0,0.00016986,2]
[329775704,1718662253807,-500.0,0.00016986,2]
[329775705,1718662253816,-603.033617,0.00016986,2]
[329775706,1718662253828,-500.0,0.00016986,2]
[329775707,1718662253837,-603.033617,0.00016986,2]
[329775708,1718662253846,-500.0,0.00016986,2]
[329775709,1718662253855,-500.0,0.00016986,2]
[329775710,1718662253864,-603.033617,0.00016986,2]
[329775711,1718662253874,-603.033617,0.00016986,2]
[329775712,1718662253883,-500.0,0.00016986,2]
[329775713,1718662253893,-500.0,0.00016986,2]
[329775714,1718662253903,-749.55,0.00016986,2]
[329775715,1718662253913,-508.69749389,0.00016986,2]
[329775716,1718662253922,-500.0,0.00016986,2]
[329775717,1718662253931,-500.0,0.00016986,2]
[329775718,1718662253941,-500.0,0.00016986,2]
[329775719,1718662253950,-500.0,0.00016986,2]
[329775720,1718662253959,-500.0,0.00016986,2]
[329775721,1718662253968,-500.0,0.00016986,2]
[329775722,1718662253978,-580.43,0.00016986,2]
[329775723,1718662253987,-500.0,0.00016986,2]
[329775724,1718662253996,-500.0,0.00016986,2]
[329775725,1718662254005,-500.0,0.00016986,2]
[329775726,1718662254015,-500.0,0.00016986,2]
[329775727,1718662254025,-707.176532,0.00016986,2]
[329775728,1718662254034,-707.176532,0.00016986,2]
[329775729,1718662254044,-500.0,0.00016986,2]
[329775730,1718662254053,-500.0,0.00016986,2]
[329775731,1718662254063,-1240.65,0.00016986,2]
[329775732,1718662254073,-707.176532,0.00016986,2]
[329775733,1718662254083,-707.176532,0.00016986,2]
[329775734,1718662254092,-500.0,0.00016986,2]
[329775735,1718662254102,-500.0,0.00016986,2]
[329775736,1718662254111,-500.0,0.00016986,2]
[329775737,1718662254121,-500.0,0.00016986,2]
[329775738,1718662254130,-604.82,0.00016986,2]
[329775739,1718662254139,-500.0,0.00016986,2]
[329775740,1718662254150,-500.0,0.00016986,2]
[329775741,1718662254159,-500.0,0.00016986,2]
[329775742,1718662254169,-500.0,0.00016986,2]
[329775743,1718662254180,-2395.18,0.00016986,2]
[329775744,1718662254189,-193.47145182,0.00016986,2]
[329775745,1718662254198,-352.58960664,0.00016986,2]
[329775746,1718662254208,-500.0,0.00017009,2]
[329775747,1718662254218,-1150.1,0.00017013,2]
[329775748,1718662254227,-184.6,0.00017013,2]
[329775749,1718662254237,-1750.0,0.0001713,2]
[329775750,1718662254246,-515.36,0.00017156,2]
[329775751,1718662254256,-500.0,0.00017156,2]
[329775752,1718662254265,-500.0,0.00017156,2]
[329775753,1718662254275,-500.0,0.00017157,2]
[329775754,1718662254285,-500.0,0.00017157,2]
[329775755,1718662254294,-500.0,0.00017157,2]
[329775756,1718662254304,-500.0,0.00017157,2]
[329775757,1718662254314,-500.0,0.00017157,2]
[329775758,1718662254324,-500.0,0.00017157,2]
[329775759,1718662254334,-500.0,0.00017157,2]
[329775760,1718662254343,-151.0,0.00017157,2]
[329775761,1718662254353,-151.0,0.00017157,2]
[329775762,1718662254364,-500.0,0.00017157,2]
[329775763,1718662254377,-500.0,0.00017157,2]
[329775764,1718662254387,-500.0,0.00017157,2]
[329775765,1718662254397,-500.0,0.00017157,2]
[329775766,1718662254406,-500.0,0.00017157,2]
[329775767,1718662254418,-871.31,0.00017157,2]
[329775768,1718662254427,-500.0,0.00017157,2]
[329775769,1718662254436,-500.0,0.00017157,2]
[329775770,1718662254447,-250.0,0.00017157,2]
[329775771,1718662254456,-219.031362,0.00017157,2]
[329775772,1718662254465,-219.031362,0.00017157,2]
[329775773,1718662254474,-504.99443237,0.00017157,2]
[329775774,1718662254484,-402.389637,0.00017157,2]
[329775775,1718662254493,-402.389637,0.00017157,2]
[329775776,1718662254502,-384.810946,0.00017157,2]
[329775777,1718662254511,-384.810946,0.00017157,2]
[329775778,1718662254521,-151.0,0.00017157,2]
[329775779,1718662254531,-384.810946,0.00017157,2]
[329775780,1718662254540,-384.810946,0.00017157,2]
[329775781,1718662254549,-151.0,0.00017157,2]
[329775782,1718662254558,-229.355019,0.00017157,2]
[329775783,1718662254567,-500.0,0.00017157,2]
[329775784,1718662254578,-874.477239,0.00017157,2]
[329775785,1718662254587,-874.477239,0.00017157,2]
[329775786,1718662254596,-500.0,0.00017157,2]
[329775787,1718662254604,-151.0,0.00017157,2]
[329775788,1718662254614,-151.0,0.00017157,2]
[329775789,1718662254623,-500.0,0.00017157,2]
[329775790,1718662254633,-1789.500026,0.00017157,2]
[329775791,1718662254642,-1789.500026,0.00017157,2]
[329775792,1718662254651,-251.324799,0.00017157,2]
[329775793,1718662254661,-251.324799,0.00017157,2]
[329775794,1718662254670,-151.0,0.00017157,2]
[329775795,1718662254679,-500.0,0.00017157,2]
[329775796,1718662254688,-392.743449,0.00017157,2]
[329775797,1718662254697,-1150.89582,0.00017157,2]
[329775798,1718662254706,-392.743458,0.00017157,2]
[329775799,1718662254716,-1150.895828,0.00017157,2]
[329775800,1718662254725,-603.033617,0.00017157,2]
[329775801,1718662254734,-603.033624,0.00017157,2]
[329775802,1718662254743,-500.0,0.00017157,2]
[329775803,1718662254752,-500.0,0.00017157,2]
[329775804,1718662254762,-707.176532,0.00017157,2]
[329775805,1718662254771,-707.176539,0.00017157,2]
[329775806,1718662254780,-219.031362,0.00017258,2]
[329775807,1718662254790,-219.031362,0.00017258,2]
[329775808,1718662254799,-402.389637,0.00017258,2]
[329775809,1718662254808,-402.389637,0.00017258,2]
[329775810,1718662254817,-151.0,0.00017258,2]
[329775811,1718662254828,-500.0,0.0001726,2]
[329775812,1718662254837,-500.0,0.0001726,2]
[329775813,1718662254847,-500.0,0.0001726,2]
[329775814,1718662254856,-500.0,0.0001726,2]
[329775815,1718662254865,-587.59097347,0.0001726,2]
[329775816,1718662254875,-500.0,0.0001726,2]
[329775817,1718662254885,-500.0,0.0001726,2]
[329775818,1718662254896,-500.0,0.0001726,2]
[329775819,1718662254908,-500.0,0.0001726,2]
[329775820,1718662254919,-500.0,0.0001726,2]
[329775821,1718662254929,-527.20977423,0.0001726,2]
[329775822,1718662254938,-384.810946,0.0001726,2]
[329775823,1718662254947,-384.810946,0.0001726,2]
[329775824,1718662254957,-500.0,0.0001726,2]
[329775825,1718662254966,-500.0,0.0001726,2]
[329775826,1718662254975,-500.0,0.0001726,2]
[329775827,1718662254985,-500.0,0.0001726,2]
[329775828,1718662254994,-874.477239,0.0001726,2]
[329775829,1718662255004,-874.477239,0.0001726,2]
[329775830,1718662255014,-566.68427342,0.0001726,2]
[329775831,1718662255024,-500.0,0.0001726,2]
[329775832,1718662255033,-2487.73,0.0001726,2]
[329775833,1718662255043,-500.0,0.0001726,2]
[329775834,1718662255053,-500.0,0.0001726,2]
[329775835,1718662255062,-500.0,0.0001726,2]
[329775836,1718662255072,-500.0,0.0001726,2]
[329775837,1718662255082,-500.0,0.0001726,2]
[329775838,1718662255091,-500.0,0.0001726,2]
[329775839,1718662255100,-500.0,0.0001726,2]
[329775840,1718662255109,-151.0,0.0001726,2]
[329775841,1718662255119,-500.0,0.0001726,2]
[329775842,1718662255128,-500.0,0.0001726,2]
[329775843,1718662255137,-500.0,0.0001726,2]
[329775844,1718662255147,-500.0,0.0001726,2]
[329775845,1718662255156,-500.0,0.0001726,2]
[329775846,1718662255166,-500.0,0.0001726,2]
[329775847,1718662255175,-1789.500026,0.0001726,2]
[329775848,1718662255185,-1789.500019,0.0001726,2]
[329775849,1718662255194,-500.0,0.0001726,2]
[329775850,1718662255203,-251.324799,0.0001726,2]
[329775851,1718662255212,-500.0,0.0001726,2]
[329775852,1718662255222,-500.0,0.0001726,2]
[329775853,1718662255231,-500.0,0.0001726,2]
[329775854,1718662255240,-251.324803,0.0001726,2]
[329775855,1718662255249,-780.92,0.0001726,2]
[329775856,1718662255259,-500.0,0.0001726,2]
[329775857,1718662255268,-1867.13,0.0001726,2]
[329775858,1718662255277,-151.0,0.0001726,2]
[329775859,1718662255287,-500.0,0.0001726,2]
[329775860,1718662255297,-500.0,0.0001726,2]
[329775861,1718662255306,-803.31,0.0001726,2]
[329775862,1718662255315,-1463.9,0.0001726,2]
[329775863,1718662255326,-500.0,0.0001726,2]
[329775864,1718662255334,-500.0,0.0001726,2]
[329775865,1718662255344,-500.0,0.0001726,2]
[329775866,1718662255353,-500.0,0.0001726,2]
[329775867,1718662255363,-1518.45,0.0001726,2]
[329775868,1718662255377,-1355.51,0.0001726,2]
[329775869,1718662255386,-500.0,0.0001726,2]
[329775870,1718662255395,-500.0,0.0001726,2]
[329775871,1718662255405,-500.0,0.0001726,2]
[329775872,1718662255416,-504.46762103,0.0001726,2]
[329775873,1718662255426,-500.0,0.0001726,2]
[329775874,1718662255435,-500.0,0.0001726,2]
[329775875,1718662255445,-500.0,0.0001726,2]
[329775876,1718662255455,-500.0,0.0001726,2]
[329775877,1718662255464,-500.0,0.0001726,2]
[329775878,1718662255473,-3634.11,0.0001726,2]
[329775879,1718662255482,-2089.52,0.0001726,2]
[329775880,1718662255491,-500.0,0.0001726,2]
[329775881,1718662255500,-500.0,0.0001726,2]
[329775882,1718662255509,-500.0,0.0001726,2]
[329775883,1718662255519,-500.0,0.0001726,2]
[329775884,1718662255528,-500.0,0.0001726,2]
[329775885,1718662255538,-500.0,0.0001726,2]
[329775886,1718662255548,-500.0,0.0001726,2]
[329775887,1718662255649,-500.0,0.0001726,2]
[329775888,1718662255659,-500.0,0.0001726,2]
[329775889,1718662255669,-749.55,0.0001726,2]
[329775890,1718662255678,-164.41653141,0.0001726,2]
[329775891,1718662255688,-500.0,0.0001726,2]
[329775892,1718662255698,-500.0,0.0001726,2]
[329775893,1718662255707,-500.0,0.0001726,2]
[329775894,1718662255717,-500.0,0.0001726,2]
[329775895,1718662255727,-500.0,0.0001726,2]
[329775896,1718662255737,-580.43,0.0001726,2]
[329775897,1718662255746,-500.0,0.0001726,2]
[329775898,1718662255755,-500.0,0.0001726,2]
[329775899,1718662255765,-500.0,0.0001726,2]
[329775900,1718662255774,-500.0,0.0001726,2]
[329775901,1718662255784,-247.38673343,0.0001726,2]
[329775902,1718662255793,-500.0,0.0001726,2]
[329775903,1718662255802,-1240.65,0.0001726,2]
[329775904,1718662255812,-500.0,0.0001726,2]
[329775905,1718662255821,-500.0,0.0001726,2]
[329775906,1718662255832,-500.0,0.0001726,2]
[329775907,1718662255841,-500.0,0.0001726,2]
[329775908,1718662255850,-604.82,0.0001726,2]
[329775909,1718662255859,-500.0,0.0001726,2]
[329775910,1718662255868,-500.0,0.0001726,2]
[329775911,1718662255878,-500.0,0.0001726,2]
[329775912,1718662255887,-500.0,0.0001726,2]
[329775913,1718662255896,-2395.18,0.0001726,2]
[329775914,1718662255906,-500.0,0.0001743,2]
[329775915,1718662255916,-610.00328968,0.00017431,2]
[329775916,1718662255925,-500.0,0.00017431,2]
[329775917,1718662255934,-500.0,0.00017431,2]
[329775918,1718662255943,-418.48332004,0.00017431,2]
[329775919,1718662255952,-500.0,0.00017431,2]
[329775920,1718662255963,-500.0,0.00017431,2]
[329775921,1718662255972,-163.199768,0.00017431,2]
[329775922,1718662255982,-500.0,0.00017431,2]
[329775923,1718662255991,-500.0,0.00017431,2]
[329775924,1718662256001,-500.0,0.00017431,2]
[329775925,1718662256012,-500.0,0.00017431,2]
[329775926,1718662256021,-510.08104424,0.00017431,2]
[329775927,1718662256031,-871.31,0.00017431,2]
[329775928,1718662256042,-496.67364669,0.00017431,2]
[329775929,1718662256051,-243.42,0.00017431,2]
[329775930,1718662256061,-219.031362,0.00017431,2]
[329775931,1718662256070,-219.031362,0.00017431,2]
[329775932,1718662256080,-219.031362,0.00017431,2]
[329775933,1718662256090,-219.031362,0.00017431,2]
[329775934,1718662256099,-402.389637,0.00017431,2]
[329775935,1718662256109,-402.389637,0.00017431,2]
[329775936,1718662256118,-402.389637,0.00017431,2]
[329775937,1718662256128,-402.389637,0.00017431,2]
[329775938,1718662256138,-384.810946,0.00017431,2]
[329775939,1718662256148,-151.0,0.00017431,2]
[329775940,1718662256157,-151.0,0.00017431,2]
[329775941,1718662256167,-384.810956,0.00017431,2]
[329775942,1718662256176,-283.76592113,0.00017431,2]
[329775943,1718662256186,-874.477239,0.00017431,2]
[329775944,1718662256196,-874.47724619,0.00017431,2]
[329775945,1718662256206,-500.0,0.00017431,2]
[329775946,1718662256216,-500.0,0.00017431,2]
[329775947,1718662256227,-500.0,0.00017431,2]
[329775948,1718662256236,-500.0,0.00017431,2]
[329775949,1718662256246,-500.0,0.00017431,2]
[329775950,1718662256255,-1150.1,0.00017502,2]
[329775951,1718662256264,-184.6,0.00017502,2]
[329775952,1718662256273,-500.0,0.00017533,2]
[329775953,1718662256283,-500.0,0.00017534,2]
[329775954,1718662256294,-500.0,0.00017534,2]
[329775955,1718662256304,-500.0,0.00017534,2]
[329775956,1718662256314,-500.0,0.00017534,2]
[329775957,1718662256324,-500.0,0.00017534,2]
[329775958,1718662256336,-595.35589146,0.00017534,2]
[329775959,1718662256345,-345.59346049,0.00017534,2]
[329775960,1718662256354,-500.0,0.00017534,2]
[329775961,1718662256364,-500.0,0.00017534,2]
[329775962,1718662256378,-500.0,0.00017534,2]
[329775963,1718662256387,-500.0,0.00017534,2]
[329775964,1718662256396,-500.0,0.00017534,2]
[329775965,1718662256406,-2487.73,0.00017534,2]
[329775966,1718662256418,-500.0,0.00017534,2]
[329775967,1718662256427,-500.0,0.00017534,2]
[329775968,1718662256436,-500.0,0.00017534,2]
[329775969,1718662256447,-500.0,0.00017534,2]
[329775970,1718662256456,-500.0,0.00017534,2]
[329775971,1718662256466,-500.0,0.00017534,2]
[329775972,1718662256476,-500.0,0.00017534,2]
[329775973,1718662256485,-500.0,0.00017534,2]
[329775974,1718662256495,-500.0,0.00017534,2]
[329775975,1718662256504,-500.0,0.00017534,2]
[329775976,1718662256514,-500.0,0.00017534,2]
[329775977,1718662256523,-500.0,0.00017534,2]
[329775978,1718662256533,-500.0,0.00017534,2]
[329775979,1718662256543,-500.0,0.00017534,2]
[329775980,1718662256553,-780.92,0.00017534,2]
[329775981,1718662256563,-220.45942557,0.00017534,2]
[329775982,1718662256572,-1867.13,0.00017534,2]
[329775983,1718662256584,-500.0,0.00017534,2]
[329775984,1718662256593,-500.0,0.00017534,2]
[329775985,1718662256602,-803.31,0.00017534,2]
[329775986,1718662256611,-1463.9,0.00017534,2]
[329775987,1718662256621,-500.0,0.00017534,2]
[329775988,1718662256631,-500.0,0.00017534,2]
[329775989,1718662256640,-500.0,0.00017534,2]
[329775990,1718662256649,-500.0,0.00017534,2]
[329775991,1718662256658,-1518.45,0.00017534,2]
[329775992,1718662256667,-1355.51,0.00017534,2]
[329775993,1718662256676,-500.0,0.00017534,2]
[329775994,1718662256686,-500.0,0.00017534,2]
[329775995,1718662256695,-500.0,0.00017534,2]
[329775996,1718662256704,-500.0,0.00017534,2]
[329775997,1718662256713,-500.0,0.00017534,2]
[329775998,1718662256723,-500.0,0.00017534,2]
[329775999,1718662256733,-500.0,0.00017534,2]
[329776000,1718662256742,-500.0,0.00017534,2]
[329776001,1718662256752,-3634.11,0.00017534,2]
[329776002,1718662256761,-2089.52,0.00017534,2]
[329776003,1718662256771,-648.66048459,0.00017534,2]
[329776004,1718662256781,-500.0,0.00017534,2]
[329776005,1718662256791,-500.0,0.00017534,2]
[329776006,1718662256800,-500.0,0.00017534,2]
[329776007,1718662256810,-500.0,0.00017534,2]
[329776008,1718662256819,-500.0,0.00017534,2]
[329776009,1718662257036,-500.0,0.00017534,2]
[329776010,1718662257047,-500.0,0.00017534,2]
[329776011,1718662257056,-749.55,0.00017534,2]
[329776012,1718662257066,-500.0,0.00017534,2]
[329776013,1718662257075,-500.0,0.00017534,2]
[329776014,1718662257086,-500.0,0.00017534,2]
[329776015,1718662257095,-500.0,0.00017534,2]
[329776016,1718662257104,-580.43,0.00017534,2]
[329776017,1718662257113,-500.0,0.00017534,2]
[329776018,1718662257123,-500.0,0.00017534,2]
[329776019,1718662257133,-500.0,0.00017534,2]
[329776020,1718662257142,-1240.65,0.00017534,2]
[329776021,1718662257152,-500.0,0.00017534,2]
[329776022,1718662257161,-500.0,0.00017534,2]
[329776023,1718662257170,-500.0,0.00017534,2]
[329776024,1718662257180,-500.0,0.00017534,2]
[329776025,1718662257189,-604.82,0.00017534,2]
[329776026,1718662257199,-500.0,0.00017534,2]
[329776027,1718662257209,-354.65495153,0.00017534,2]
[329776028,1718662257218,-500.0,0.00017534,2]
[329776029,1718662257227,-500.0,0.00017534,2]
[329776030,1718662257237,-2395.18,0.00017534,2]
[329776031,1718662257246,-500.0,0.00017604,2]
[329776032,1718662257256,-500.0,0.00017604,2]
[329776033,1718662257266,-219.031362,0.00017605,2]
[329776034,1718662257275,-219.031369,0.00017605,2]
[329776035,1718662257285,-402.389637,0.00017605,2]
[329776036,1718662257294,-402.389632,0.00017605,2]
[329776037,1718662257303,-151.0,0.00017605,2]
[329776038,1718662257312,-10406.12197036,0.00017611,2]
[329776039,1718662257322,-500.0,0.00017704,2]
[329776040,1718662257331,-500.0,0.00017705,2]
[329776041,1718662257341,-593.03257843,0.00017705,2]
[329776042,1718662257350,-500.0,0.00017705,2]
[329776043,1718662257360,-500.0,0.00017705,2]
[329776044,1718662257374,-500.0,0.00017705,2]
[329776045,1718662257384,-500.0,0.00017705,2]
[329776046,1718662257393,-500.0,0.00017705,2]
[329776047,1718662257402,-500.0,0.00017705,2]
[329776048,1718662257412,-871.31,0.00017705,2]
[329776049,1718662257422,-500.0,0.00017705,2]
[329776050,1718662257431,-500.0,0.00017705,2]
[329776051,1718662257440,-500.0,0.00017705,2]
[329776052,1718662257452,-500.0,0.00017705,2]
[329776053,1718662257462,-500.0,0.00017753,2]
[329776054,1718662257472,-500.0,0.00017808,2]
[329776055,1718662257481,-500.0,0.00017808,2]
[329776056,1718662257491,-500.0,0.00017808,2]
[329776057,1718662257500,-500.0,0.00017808,2]
[329776058,1718662257509,-500.0,0.00017808,2]
[329776059,1718662257519,-500.0,0.00017808,2]
[329776060,1718662257530,-500.0,0.00017808,2]
[329776061,1718662257540,-500.0,0.00017808,2]
[329776062,1718662257550,-500.0,0.00017808,2]
[329776063,1718662257559,-2487.73,0.00017808,2]
[329776064,1718662257568,-500.0,0.00017808,2]
[329776065,1718662257578,-500.0,0.00017808,2]
[329776066,1718662257587,-500.0,0.00017808,2]
[329776067,1718662257596,-500.0,0.00017808,2]
[329776068,1718662257606,-500.0,0.00017808,2]
[329776069,1718662257615,-500.0,0.00017808,2]
[329776070,1718662257625,-500.0,0.00017808,2]
[329776071,1718662257634,-500.0,0.00017808,2]
[329776072,1718662257643,-500.0,0.00017808,2]
[329776073,1718662257652,-500.0,0.00017808,2]
[329776074,1718662257661,-500.0,0.00017808,2]
[329776075,1718662257670,-500.0,0.00017808,2]
[329776076,1718662257680,-500.0,0.00017808,2]
[329776077,1718662257689,-500.0,0.00017808,2]
[329776078,1718662257698,-780.92,0.00017808,2]
[329776079,1718662257707,-1867.13,0.00017808,2]
[329776080,1718662257717,-500.0,0.00017808,2]
[329776081,1718662257726,-500.0,0.00017808,2]
[329776082,1718662257735,-803.31,0.00017808,2]
[329776083,1718662257744,-1463.9,0.00017808,2]
[329776084,1718662257753,-500.0,0.00017808,2]
[329776085,1718662257763,-500.0,0.00017808,2]
[329776086,1718662257772,-500.0,0.00017808,2]
[329776087,1718662257782,-500.0,0.00017808,2]
[329776088,1718662257791,-1518.45,0.00017808,2]
[329776089,1718662257800,-1355.51,0.00017808,2]
[329776090,1718662257810,-500.0,0.00017808,2]
[329776091,1718662257819,-500.0,0.00017808,2]
[329776092,1718662257828,-500.0,0.00017808,2]
[329776093,1718662257838,-500.0,0.00017808,2]
[329776094,1718662257847,-500.0,0.00017808,2]
[329776095,1718662257860,-500.0,0.00017808,2]
[329776096,1718662257869,-500.0,0.00017808,2]
[329776097,1718662257879,-500.0,0.00017808,2]
[329776098,1718662257888,-3634.11,0.00017808,2]
[329776099,1718662257899,-2089.52,0.00017808,2]
[329776100,1718662257908,-500.0,0.00017808,2]
[329776101,1718662257918,-500.0,0.00017808,2]
[329776102,1718662257928,-500.0,0.00017808,2]
[329776103,1718662257937,-500.0,0.00017808,2]
[329776104,1718662257946,-500.0,0.00017808,2]
[329776105,1718662257956,-500.0,0.00017808,2]
[329776106,1718662257966,-500.0,0.00017808,2]
[329776107,1718662257975,-749.55,0.00017808,2]
[329776108,1718662257984,-500.0,0.00017808,2]
[329776109,1718662257993,-500.0,0.00017808,2]
[329776110,1718662258003,-500.0,0.00017808,2]
[329776111,1718662258012,-500.0,0.00017808,2]
[329776112,1718662258022,-580.43,0.00017808,2]